[Event "Kupreichik Memorial Open 2018"]
[Site "Minsk"]
[Date "2018.06.22"]
[Round "7"]
[White "Yagutian, Mariya"]
[Black "Vashchilov, Sergey"]
[Result "0-1"]
[ECO "A40"]
[WhiteElo "1506"]
[BlackElo "2122"]
[Annotator "NA"]
[PlyCount "50"]
[EventDate "2018.06.21"]
[EventCountry "BLR"]
[SourceTitle "playchess.com"]
[Source "ChessBase"]
[SourceQuality "1"]
[TimeControl "900+10"]

1. d4 {[%emt 0:00:00]} e6 {[%emt 0:00:01]} 2. c4 {[%emt 0:00:00]} d5 {[%emt 0:00:02]} 3. Nf3 {[%emt 0:00:02]} Nf6 {[%emt 0:00:02]} 4. g3 {[%emt 0:00:06]} Bb4+ {[%emt 0:00:06]} 5. Bd2 {[%emt 0:00:12]} Be7 {[%emt 0:00:02]} 6. Bg2 {[%emt 0:00:12]} O-O {[%emt 0:00:02]} 7. O-O {[%emt 0:00:13]} dxc4 {[%emt 0:00:03]} 8. Qc2 {[%emt 0:00:16]} a6 {[%emt 0:00:03]} 9. Qxc4 {[%emt 0:00:57]} b5 {[%emt 0:00:01]} 10. Qc2 {[%emt 0:00:08]} Bb7 {[%emt 0:00:02]} 11. Bf4 {[%emt 0:00:37]} Nc6 {[%emt 0:00:54]} 12. Rd1 {[%emt 0:02:16]} Nb4 {[%emt 0:00:16]} 13. Qc1 {[%emt 0:01:39]} Rc8 {[%emt 0:00:38]} 14. a3 {[%emt 0:00:44]} Nbd5 {[%emt 0:00:04]} 15. Bg5 {[%emt 0:02:32]} c5 {[%emt 0:00:30]} 16. Bxf6 {[%emt 0:03:04]} cxd4 {[%emt 0:00:58]} 17. Qd2 {[%emt 0:00:05]} Bxf6 {[%emt 0:00:23]} 18. Nxd4 {[%emt 0:00:19]} Qc7 {[%emt 0:00:42]} 19. e4 {[%emt 0:01:30]} Nb6 {[%emt 0:00:05]} 20. Qe3 {[%emt 0:00:09]} Nc4 {[%emt 0:00:18]} 21. Qe2 {[%emt 0:00:03]} Rfd8 {[%emt 0:00:08]} 22. e5 {[%emt 0:01:04]} Bxe5 {[%emt 0:00:28]} 23. Bxb7 {[%emt 0:02:20]} Qxb7 {[%emt 0:00:06]} 24. Qg4 {[%emt 0:00:03]} Nxb2 {[%emt 0:00:47]} 25. Nc2 {[%emt 0:00:28]} Rxd1+ 0-1

[Event "Kupreichik Memorial Open 2018"]
[Site "Minsk"]
[Date "2018.06.22"]
[Round "8"]
[White "Nikitenko, Mihail"]
[Black "Meshkov, Yuri A"]
[Result "1-0"]
[ECO "B11"]
[WhiteElo "2401"]
[BlackElo "2375"]
[Annotator "NA"]
[PlyCount "34"]
[EventDate "2018.06.21"]
[EventCountry "BLR"]
[SourceTitle "playchess.com"]
[Source "ChessBase"]
[SourceQuality "1"]
[TimeControl "900+10"]

1. e4 {[%emt 0:00:00]} c6 {[%emt 0:00:01]} 2. Nc3 {[%emt 0:00:00]} d5 {[%emt 0:00:18]} 3. Nf3 {[%emt 0:00:00]} Bg4 {[%emt 0:00:29]} 4. h3 {[%emt 0:00:00]} Bxf3 {[%emt 0:00:10]} 5. Qxf3 {[%emt 0:00:02]} e6 {[%emt 0:00:02]} 6. d3 {[%emt 0:00:03]} Nd7 {[%emt 0:00:10]} 7. Bd2 {[%emt 0:00:24]} g6 {[%emt 0:00:28]} 8. O-O-O {[%emt 0:01:14]} Bg7 {[%emt 0:00:01]} 9. h4 {[%emt 0:01:07]} h5 {[%emt 0:00:04]} 10. Bg5 {[%emt 0:01:55]} Qa5 {[%emt 0:00:15]} 11. d4 {[%emt 0:00:07]} Ngf6 {[%emt 0:00:20]} 12. Kb1 {[%emt 0:00:42]} dxe4 {[%emt 0:00:33]} 13. Nxe4 {[%emt 0:00:03]} Nxe4 14. Qxe4 Qf5 15. Qe3 Nb6 16. Qa3 Bf8 17. Qb3 Qa5 1-0

[Event "Kupreichik Memorial Open 2018"]
[Site "Minsk"]
[Date "2018.06.22"]
[Round "8"]
[White "Tihonov, Jurij"]
[Black "Zhukovskij, Viktor"]
[Result "1-0"]
[ECO "D15"]
[WhiteElo "2385"]
[BlackElo "1973"]
[Annotator "NA"]
[PlyCount "151"]
[EventDate "2018.06.21"]
[EventCountry "BLR"]
[SourceTitle "playchess.com"]
[Source "ChessBase"]
[SourceQuality "1"]
[TimeControl "900+10"]

1. d4 {[%emt 0:00:00]} d5 {[%emt 0:00:01]} 2. c4 {[%emt 0:00:00]} c6 {[%emt 0:00:02]} 3. Nf3 {[%emt 0:00:01]} Nf6 {[%emt 0:00:03]} 4. Nc3 {[%emt 0:00:03]} a6 {[%emt 0:00:02]} 5. e3 {[%emt 0:00:08]} b5 {[%emt 0:00:02]} 6. c5 {[%emt 0:00:05]} Bg4 {[%emt 0:00:12]} 7. Qb3 {[%emt 0:00:03]} a5 {[%emt 0:01:44]} 8. Ne5 {[%emt 0:00:20]} a4 {[%emt 0:00:27]} 9. Qc2 {[%emt 0:00:06]} Be6 {[%emt 0:00:30]} 10. Bd2 {[%emt 0:00:18]} g6 {[%emt 0:00:25]} 11. Nxb5 {[%emt 0:00:13]} Bf5 {[%emt 0:03:36]} 12. Qc1 {[%emt 0:00:02]} Ne4 {[%emt 0:00:18]} 13. Nc3 {[%emt 0:00:07]} Bg7 {[%emt 0:00:26]} 14. Nxe4 {[%emt 0:00:04]} Bxe4 {[%emt 0:00:14]} 15. f3 {[%emt 0:00:00]} Bf5 {[%emt 0:00:02]} 16. Be2 {[%emt 0:00:01]} Qc7 {[%emt 0:00:32]} 17. Bc3 {[%emt 0:00:03]} f6 {[%emt 0:01:00]} 18. Nd3 {[%emt 0:00:01]} Nd7 {[%emt 0:00:02]} 19. O-O {[%emt 0:00:05]} O-O {[%emt 0:00:13]} 20. b4 {[%emt 0:00:11]} e5 {[%emt 0:01:47]} 21. b5 {[%emt 0:00:09]} cxb5 {[%emt 0:02:16]} 22. Nb4 {[%emt 0:00:03]} Be6 {[%emt 0:00:04]} 23. Bxb5 {[%emt 0:00:04]} Rfb8 {[%emt 0:00:59]} 24. Bc6 {[%emt 0:00:08]} Rxb4 {[%emt 0:00:50]} 25. Bxd7 {[%emt 0:00:14]} Bxd7 {[%emt 0:00:17]} 26. Bxb4 {[%emt 0:00:01]} Bb5 {[%emt 0:00:02]} 27. Re1 {[%emt 0:00:02]} f5 {[%emt 0:00:06]} 28. dxe5 {[%emt 0:00:09]} Bxe5 {[%emt 0:00:04]} 29. Bc3 {[%emt 0:00:01]} Bxh2+ {[%emt 0:00:04]} 30. Kh1 {[%emt 0:00:17]} Bg3 {[%emt 0:02:44]} 31. Bf6 {[%emt 0:00:15]} Qf7 {[%emt 0:00:37]} 32. Bg5 {[%emt 0:00:10]} h6 {[%emt 0:00:23]} 33. Bf4 {[%emt 0:00:02]} Bxe1 {[%emt 0:00:03]} 34. Qxe1 {[%emt 0:00:01]} Qf6 {[%emt 0:00:19]} 35. Rb1 {[%emt 0:00:12]} Bc4 {[%emt 0:00:04]} 36. Qg3 {[%emt 0:00:16]} g5 {[%emt 0:00:21]} 37. Be5 {[%emt 0:00:03]} Qf7 {[%emt 0:00:01]} 38. Bd4 {[%emt 0:00:05]} f4 {[%emt 0:00:13]} 39. Qh3 {[%emt 0:00:16]} Bd3 {[%emt 0:00:18]} 40. Qxh6 {[%emt 0:00:08]} Qh7 {[%emt 0:00:03]} 41. Qxh7+ {[%emt 0:00:05]} Kxh7 {[%emt 0:00:20]} 42. Rb7+ Kg6 {[%emt 0:00:08]} 43. exf4 {[%emt 0:00:08]} gxf4 {[%emt 0:00:04]} 44. c6 {[%emt 0:00:02]} Rc8 {[%emt 0:00:16]} 45. Rg7+ {[%emt 0:00:04]} Kf5 {[%emt 0:00:03]} 46. c7 {[%emt 0:00:03]} a3 {[%emt 0:00:06]} 47. Bc5 {[%emt 0:01:29]} Kf6 {[%emt 0:00:23]} 48. Rg4 {[%emt 0:00:07]} Rxc7 {[%emt 0:00:11]} 49. Bxa3 {[%emt 0:00:02]} Kf5 {[%emt 0:00:09]} 50. Bd6 {[%emt 0:00:04]} Rh7+ {[%emt 0:00:08]} 51. Kg1 {[%emt 0:00:02]} Ke6 {[%emt 0:00:02]} 52. Bxf4 {[%emt 0:00:06]} Ra7 {[%emt 0:00:02]} 53. Be3 {[%emt 0:00:15]} Rxa2 {[%emt 0:00:02]} 54. Bd4 {[%emt 0:00:02]} Bf5 {[%emt 0:00:04]} 55. Rf4 {[%emt 0:00:06]} Rd2 {[%emt 0:00:07]} 56. Kh2 {[%emt 0:00:24]} Bd3 {[%emt 0:00:09]} 57. Kh3 {[%emt 0:00:08]} Bf5+ {[%emt 0:00:04]} 58. g4 {[%emt 0:00:08]} Bd3 {[%emt 0:00:02]} 59. Kh4 {[%emt 0:00:10]} Ra2 {[%emt 0:00:30]} 60. Kg5 {[%emt 0:00:11]} Ra8 {[%emt 0:00:25]} 61. Rf6+ {[%emt 0:00:03]} Kd7 {[%emt 0:00:10]} 62. f4 {[%emt 0:00:30]} Rg8+ {[%emt 0:00:05]} 63. Kh4 {[%emt 0:00:01]} Rh8+ {[%emt 0:00:08]} 64. Kg3 {[%emt 0:00:01]} Re8 {[%emt 0:00:02]} 65. Be5 {[%emt 0:00:07]} Be4 {[%emt 0:00:05]} 66. g5 {[%emt 0:00:03]} Re6 {[%emt 0:00:18]} 67. Rf8 {[%emt 0:00:37]} Re8 {[%emt 0:00:28]} 68. Rxe8 {[%emt 0:00:03]} Kxe8 {[%emt 0:00:02]} 69. Kg4 {[%emt 0:00:01]} Bh7 {[%emt 0:00:09]} 70. f5 {[%emt 0:00:00]} Kf7 {[%emt 0:00:02]} 71. Kf4 {[%emt 0:00:04]} Kf8 {[%emt 0:00:35]} 72. g6 {[%emt 0:00:04]} Bg8 {[%emt 0:00:09]} 73. Bd4 {[%emt 0:00:03]} Ke7 {[%emt 0:00:13]} 74. Kg5 {[%emt 0:00:02]} Kf8 {[%emt 0:00:09]} 75. Kh6 {[%emt 0:00:02]} Ke7 {[%emt 0:00:12]} 76. Kg7 1-0

[Event "Kupreichik Memorial Open 2018"]
[Site "Minsk"]
[Date "2018.06.22"]
[Round "8"]
[White "Barskij, Vladimir"]
[Black "Beliuga, Mikhail"]
[Result "1/2-1/2"]
[ECO "B13"]
[WhiteElo "2352"]
[BlackElo "1699"]
[Annotator "NA"]
[PlyCount "83"]
[EventDate "2018.06.21"]
[EventCountry "BLR"]
[SourceTitle "playchess.com"]
[Source "ChessBase"]
[SourceQuality "1"]
[TimeControl "900+10"]

1. e4 {[%emt 0:00:00]} c6 {[%emt 0:00:01]} 2. d4 {[%emt 0:00:00]} d5 {[%emt 0:00:00]} 3. exd5 {[%emt 0:00:00]} cxd5 {[%emt 0:00:01]} 4. Bf4 {[%emt 0:00:02]} Nc6 {[%emt 0:00:14]} 5. c3 {[%emt 0:00:09]} Nf6 {[%emt 0:00:10]} 6. Bd3 {[%emt 0:00:06]} Bg4 {[%emt 0:00:12]} 7. Qb3 {[%emt 0:00:11]} Na5 {[%emt 0:01:51]} 8. Qa4+ {[%emt 0:00:31]} Bd7 {[%emt 0:00:19]} 9. Qc2 {[%emt 0:01:16]} e6 {[%emt 0:00:50]} 10. Nf3 {[%emt 0:00:07]} b5 {[%emt 0:00:16]} 11. O-O {[%emt 0:00:21]} Be7 {[%emt 0:01:37]} 12. Nbd2 {[%emt 0:01:27]} O-O {[%emt 0:00:23]} 13. b4 {[%emt 0:01:11]} Nc4 {[%emt 0:01:02]} 14. Nb3 {[%emt 0:00:05]} Qb6 {[%emt 0:01:05]} 15. Nc5 {[%emt 0:00:13]} Bc6 {[%emt 0:00:14]} 16. Ne5 {[%emt 0:01:42]} Rfd8 {[%emt 0:00:37]} 17. Bg5 {[%emt 0:00:52]} h6 {[%emt 0:00:18]} 18. Bh4 {[%emt 0:00:10]} Be8 {[%emt 0:00:09]} 19. Qe2 {[%emt 0:00:56]} a5 {[%emt 0:04:55]} 20. a3 {[%emt 0:00:29]} axb4 {[%emt 0:00:35]} 21. axb4 {[%emt 0:00:02]} Ra7 {[%emt 0:00:06]} 22. Ra2 {[%emt 0:01:20]} Rda8 {[%emt 0:01:28]} 23. Rfa1 {[%emt 0:00:02]} Qc7 {[%emt 0:00:02]} 24. Bg3 {[%emt 0:01:05]} Bd6 {[%emt 0:00:56]} 25. Nxc4 {[%emt 0:03:51]} Bxg3 {[%emt 0:00:50]} 26. Rxa7 {[%emt 0:01:44]} Rxa7 27. Rxa7 {[%emt 0:00:03]} Bxh2+ {[%emt 0:00:39]} 28. Kh1 {[%emt 0:00:11]} Qxa7 {[%emt 0:00:04]} 29. Na5 {[%emt 0:00:11]} Bc7 {[%emt 0:00:49]} 30. Bxb5 {[%emt 0:00:02]} Bxa5 {[%emt 0:00:11]} 31. Bxe8 {[%emt 0:00:03]} Bc7 {[%emt 0:00:12]} 32. Ba4 {[%emt 0:00:26]} Ne4 {[%emt 0:00:08]} 33. Qc2 {[%emt 0:00:48]} Nxc5 {[%emt 0:00:13]} 34. bxc5 {[%emt 0:00:44]} Qb7 {[%emt 0:00:10]} 35. g3 {[%emt 0:00:06]} Ba5 {[%emt 0:00:04]} 36. c6 {[%emt 0:00:07]} Qb6 37. Kg2 {[%emt 0:00:10]} g6 {[%emt 0:00:10]} 38. Qc1 {[%emt 0:00:09]} Kg7 {[%emt 0:00:06]} 39. Qa3 {[%emt 0:00:02]} Qc7 {[%emt 0:00:19]} 40. Qb3 {[%emt 0:00:03]} Kg8 {[%emt 0:00:18]} 41. Qb7 {[%emt 0:00:04]} Kg7 {[%emt 0:00:01]} 42. Kf3 {[%emt 0:00:32]} 1/2-1/2

[Event "Kupreichik Memorial Open 2018"]
[Site "Minsk"]
[Date "2018.06.22"]
[Round "8"]
[White "Kalugin, Sergey G"]
[Black "Tsaruk, Maksim"]
[Result "1/2-1/2"]
[ECO "C44"]
[WhiteElo "2334"]
[BlackElo "1980"]
[Annotator "NA"]
[PlyCount "66"]
[EventDate "2018.06.21"]
[EventCountry "BLR"]
[SourceTitle "playchess.com"]
[Source "ChessBase"]
[SourceQuality "1"]
[TimeControl "900+10"]

1. e4 {[%emt 0:00:00]} e5 {[%emt 0:00:04]} 2. Nf3 {[%emt 0:00:00]} Nc6 {[%emt 0:00:05]} 3. c3 {[%emt 0:00:47]} Nf6 {[%emt 0:00:50]} 4. d4 {[%emt 0:00:03]} d6 {[%emt 0:03:28]} 5. Nbd2 {[%emt 0:04:55]} Bg4 {[%emt 0:01:40]} 6. Be2 {[%emt 0:01:20]} Be7 {[%emt 0:02:37]} 7. O-O {[%emt 0:00:04]} O-O {[%emt 0:00:05]} 8. Qc2 {[%emt 0:01:13]} exd4 {[%emt 0:01:35]} 9. cxd4 {[%emt 0:00:05]} Re8 {[%emt 0:00:08]} 10. Bb5 {[%emt 0:00:52]} Bd7 {[%emt 0:01:16]} 11. Bc4 {[%emt 0:00:27]} Bf8 {[%emt 0:00:52]} 12. a3 {[%emt 0:00:52]} h6 {[%emt 0:00:39]} 13. b4 {[%emt 0:01:24]} Bg4 {[%emt 0:01:32]} 14. b5 {[%emt 0:02:02]} Ne7 {[%emt 0:01:00]} 15. e5 {[%emt 0:00:22]} Nfd5 {[%emt 0:00:07]} 16. Qb3 {[%emt 0:00:51]} Be6 {[%emt 0:00:10]} 17. Ne4 {[%emt 0:00:29]} Qd7 {[%emt 0:00:53]} 18. Bb2 {[%emt 0:01:26]} Nb6 {[%emt 0:00:25]} 19. Bxe6 {[%emt 0:00:06]} fxe6 {[%emt 0:00:01]} 20. a4 {[%emt 0:00:22]} Nbd5 {[%emt 0:00:27]} 21. Rac1 {[%emt 0:00:20]} Ng6 {[%emt 0:00:16]} 22. exd6 {[%emt 0:00:08]} cxd6 {[%emt 0:00:02]} 23. g3 {[%emt 0:00:10]} Rec8 {[%emt 0:00:21]} 24. Ba3 {[%emt 0:00:02]} a6 {[%emt 0:00:16]} 25. h4 {[%emt 0:00:09]} axb5 {[%emt 0:00:10]} 26. Rxc8 {[%emt 0:00:12]} Rxc8 {[%emt 0:00:14]} 27. axb5 {[%emt 0:00:01]} Nh8 {[%emt 0:00:02]} 28. Re1 {[%emt 0:00:26]} Nf7 {[%emt 0:00:03]} 29. Nh2 {[%emt 0:00:08]} Qc7 {[%emt 0:00:26]} 30. Rc1 {[%emt 0:00:13]} Qd7 {[%emt 0:00:01]} 31. Re1 {[%emt 0:00:09]} Qc7 {[%emt 0:00:01]} 32. Rc1 {[%emt 0:00:17]} Qd7 {[%emt 0:00:01]} 33. Re1 {[%emt 0:00:08]} Qc7 {[%emt 0:00:23]} 1/2-1/2

[Event "Kupreichik Memorial Open 2018"]
[Site "Minsk"]
[Date "2018.06.22"]
[Round "8"]
[White "Sihite, Chelsie Monica Igne"]
[Black "Talma, Sergei"]
[Result "1-0"]
[ECO "B30"]
[WhiteElo "2236"]
[BlackElo "1858"]
[Annotator "NA"]
[PlyCount "107"]
[EventDate "2018.06.21"]
[EventCountry "BLR"]
[SourceTitle "playchess.com"]
[Source "ChessBase"]
[SourceQuality "1"]
[TimeControl "900+10"]

1. e4 {[%emt 0:00:00]} c5 {[%emt 0:00:02]} 2. Nf3 {[%emt 0:00:00]} Nc6 {[%emt 0:00:01]} 3. Bb5 {[%emt 0:00:00]} Nf6 {[%emt 0:00:03]} 4. e5 {[%emt 0:00:06]} Nd5 {[%emt 0:00:02]} 5. O-O {[%emt 0:00:03]} Nc7 {[%emt 0:00:09]} 6. a4 {[%emt 0:00:06]} a6 {[%emt 0:00:14]} 7. Bc4 {[%emt 0:00:06]} d5 {[%emt 0:00:26]} 8. exd6 {[%emt 0:00:02]} exd6 {[%emt 0:00:02]} 9. d4 {[%emt 0:00:18]} d5 {[%emt 0:00:22]} 10. Be2 {[%emt 0:00:02]} c4 {[%emt 0:00:52]} 11. b3 {[%emt 0:00:13]} cxb3 {[%emt 0:00:10]} 12. cxb3 {[%emt 0:00:01]} Be7 {[%emt 0:00:07]} 13. h3 {[%emt 0:00:31]} O-O {[%emt 0:00:08]} 14. Ba3 {[%emt 0:00:18]} Bxa3 {[%emt 0:02:58]} 15. Nxa3 {[%emt 0:00:12]} Qf6 {[%emt 0:00:25]} 16. Nc2 {[%emt 0:00:20]} Bf5 {[%emt 0:00:13]} 17. Ne3 {[%emt 0:00:19]} Be4 {[%emt 0:00:47]} 18. Ng4 {[%emt 0:00:44]} Qg6 {[%emt 0:00:31]} 19. Qd2 {[%emt 0:01:29]} h5 {[%emt 0:01:01]} 20. Nge5 {[%emt 0:01:39]} Nxe5 {[%emt 0:00:14]} 21. dxe5 {[%emt 0:00:01]} Ne6 {[%emt 0:00:42]} 22. Nh4 {[%emt 0:00:20]} Qg5 {[%emt 0:01:06]} 23. Qxg5 {[%emt 0:00:03]} Nxg5 {[%emt 0:00:02]} 24. Bxh5 {[%emt 0:00:53]} g6 {[%emt 0:01:42]} 25. Bg4 {[%emt 0:00:57]} Bc2 {[%emt 0:00:06]} 26. f4 {[%emt 0:01:02]} Ne4 {[%emt 0:00:35]} 27. Nf3 {[%emt 0:00:37]} Bxb3 {[%emt 0:00:36]} 28. a5 {[%emt 0:01:03]} Bc4 {[%emt 0:00:49]} 29. Rfb1 {[%emt 0:00:11]} Rab8 {[%emt 0:00:41]} 30. Nd4 {[%emt 0:00:09]} f5 {[%emt 0:01:16]} 31. Bf3 {[%emt 0:00:30]} Nd2 {[%emt 0:00:38]} 32. Rb6 {[%emt 0:00:05]} Nxf3+ {[%emt 0:00:13]} 33. gxf3 {[%emt 0:00:15]} Kh7 {[%emt 0:00:16]} 34. Kf2 {[%emt 0:00:01]} Bb5 {[%emt 0:00:51]} 35. Rg1 {[%emt 0:00:43]} Bc6 {[%emt 0:00:15]} 36. Rc1 {[%emt 0:00:57]} Rfe8 {[%emt 0:00:27]} 37. h4 {[%emt 0:00:52]} Rbc8 {[%emt 0:00:25]} 38. Nxc6 {[%emt 0:01:08]} bxc6 {[%emt 0:00:08]} 39. Rcxc6 {[%emt 0:00:02]} Rxc6 {[%emt 0:00:06]} 40. Rxc6 {[%emt 0:00:01]} Rb8 {[%emt 0:00:11]} 41. Rxa6 {[%emt 0:00:43]} Rb2+ {[%emt 0:00:21]} 42. Kg3 {[%emt 0:00:01]} d4 {[%emt 0:00:27]} 43. Rd6 {[%emt 0:00:02]} Ra2 {[%emt 0:00:15]} 44. h5 {[%emt 0:00:06]} gxh5 {[%emt 0:00:08]} 45. Kh4 {[%emt 0:00:01]} Rxa5 {[%emt 0:00:50]} 46. Kxh5 {[%emt 0:00:07]} Ra4 {[%emt 0:00:31]} 47. Kg5 {[%emt 0:00:02]} Kg7 {[%emt 0:00:01]} 48. Kxf5 {[%emt 0:00:17]} Kf7 {[%emt 0:00:01]} 49. e6+ {[%emt 0:00:23]} Ke7 {[%emt 0:00:04]} 50. Rd7+ {[%emt 0:00:01]} Ke8 {[%emt 0:00:03]} 51. Ke5 {[%emt 0:00:03]} Ra3 {[%emt 0:00:37]} 52. Rxd4 {[%emt 0:00:09]} Rxf3 {[%emt 0:00:04]} 53. f5 {[%emt 0:00:02]} Ke7 {[%emt 0:00:12]} 54. f6+ {[%emt 0:00:07]} 1-0

[Event "Kupreichik Memorial Open 2018"]
[Site "Minsk"]
[Date "2018.06.22"]
[Round "8"]
[White "Savolainen, Lev P"]
[Black "Tsigelnitskiy, Ilusha"]
[Result "0-1"]
[ECO "A57"]
[WhiteElo "2163"]
[BlackElo "2253"]
[Annotator "NA"]
[PlyCount "48"]
[EventDate "2018.06.21"]
[EventCountry "BLR"]
[SourceTitle "playchess.com"]
[Source "ChessBase"]
[SourceQuality "1"]
[TimeControl "900+10"]

1. d4 {[%emt 0:00:00]} Nf6 {[%emt 0:00:02]} 2. c4 {[%emt 0:00:00]} c5 {[%emt 0:00:02]} 3. d5 {[%emt 0:00:00]} b5 {[%emt 0:00:02]} 4. cxb5 {[%emt 0:00:00]} a6 {[%emt 0:00:01]} 5. b6 {[%emt 0:00:01]} d6 {[%emt 0:00:04]} 6. Nc3 {[%emt 0:00:01]} Nbd7 {[%emt 0:00:04]} 7. e4 {[%emt 0:00:02]} g6 {[%emt 0:00:03]} 8. h3 {[%emt 0:00:02]} Bg7 {[%emt 0:00:17]} 9. Nf3 {[%emt 0:00:01]} O-O {[%emt 0:00:38]} 10. Be2 {[%emt 0:00:11]} Nxb6 {[%emt 0:01:28]} 11. Bf4 {[%emt 0:00:22]} a5 {[%emt 0:01:06]} 12. O-O {[%emt 0:00:40]} a4 {[%emt 0:00:15]} 13. a3 {[%emt 0:00:17]} Ba6 {[%emt 0:01:15]} 14. Bxa6 {[%emt 0:01:22]} Rxa6 {[%emt 0:00:02]} 15. Qe2 {[%emt 0:00:03]} Qa8 {[%emt 0:01:44]} 16. Rad1 {[%emt 0:00:34]} Qb7 {[%emt 0:01:04]} 17. Rd2 {[%emt 0:00:33]} Raa8 {[%emt 0:00:48]} 18. Rfd1 {[%emt 0:01:00]} Qa6 {[%emt 0:02:48]} 19. Nb5 {[%emt 0:01:29]} Rfd8 {[%emt 0:01:35]} 20. e5 {[%emt 0:06:53]} dxe5 {[%emt 0:00:16]} 21. Nxe5 {[%emt 0:00:08]} Nbxd5 {[%emt 0:01:41]} 22. Qc4 {[%emt 0:01:25]} e6 {[%emt 0:00:14]} 23. Qxc5 {[%emt 0:02:27]} Rdc8 {[%emt 0:00:21]} 24. Nc7 {[%emt 0:01:05]} Rxc7 {[%emt 0:00:45]} 0-1

[Event "Kupreichik Memorial Open 2018"]
[Site "Minsk"]
[Date "2018.06.22"]
[Round "8"]
[White "Badelka, Olga"]
[Black "Fedotov, Konstantin"]
[Result "1-0"]
[ECO "A36"]
[WhiteElo "2153"]
[BlackElo "2090"]
[Annotator "NA"]
[PlyCount "69"]
[EventDate "2018.06.21"]
[EventCountry "BLR"]
[SourceTitle "playchess.com"]
[Source "ChessBase"]
[SourceQuality "1"]
[TimeControl "900+10"]

1. c4 {[%emt 0:00:00]} c5 {[%emt 0:00:12]} 2. Nc3 {[%emt 0:00:00]} Nc6 {[%emt 0:00:01]} 3. g3 {[%emt 0:00:00]} g6 {[%emt 0:00:01]} 4. Bg2 {[%emt 0:00:00]} Bg7 {[%emt 0:00:02]} 5. d3 {[%emt 0:00:00]} d6 {[%emt 0:00:06]} 6. e4 {[%emt 0:00:02]} Rb8 {[%emt 0:00:35]} 7. Nge2 {[%emt 0:00:05]} Bg4 {[%emt 0:00:05]} 8. h3 {[%emt 0:00:20]} Bxe2 {[%emt 0:00:03]} 9. Nxe2 {[%emt 0:00:02]} e6 {[%emt 0:00:02]} 10. O-O {[%emt 0:00:11]} Nge7 {[%emt 0:00:01]} 11. Rb1 {[%emt 0:00:07]} b5 {[%emt 0:00:04]} 12. b3 {[%emt 0:00:04]} Qa5 {[%emt 0:00:07]} 13. Bf4 {[%emt 0:02:14]} Rd8 {[%emt 0:00:47]} 14. a4 {[%emt 0:02:23]} bxa4 {[%emt 0:00:55]} 15. bxa4 {[%emt 0:00:01]} O-O {[%emt 0:00:44]} 16. Rb5 {[%emt 0:01:03]} Qa6 {[%emt 0:00:02]} 17. Qb3 {[%emt 0:01:13]} Nb4 {[%emt 0:00:43]} 18. d4 {[%emt 0:00:36]} Nec6 {[%emt 0:03:13]} 19. dxc5 {[%emt 0:00:04]} dxc5 {[%emt 0:00:02]} 20. Rxc5 {[%emt 0:00:09]} Rd3 {[%emt 0:00:02]} 21. Qb1 {[%emt 0:00:13]} Rfd8 {[%emt 0:01:06]} 22. a5 {[%emt 0:00:38]} e5 {[%emt 0:00:55]} 23. Bg5 {[%emt 0:00:30]} f6 {[%emt 0:00:01]} 24. Be3 {[%emt 0:00:16]} Bf8 {[%emt 0:00:06]} 25. Rb5 {[%emt 0:00:17]} Ra3 {[%emt 0:00:21]} 26. h4 {[%emt 0:01:41]} Nd3 {[%emt 0:01:12]} 27. Rd1 {[%emt 0:00:50]} Nxa5 {[%emt 0:00:30]} 28. Bc1 {[%emt 0:03:42]} Nxc1 {[%emt 0:01:11]} 29. Qxc1 {[%emt 0:00:16]} Nb3 {[%emt 0:01:45]} 30. Rxb3 {[%emt 0:00:05]} Rxd1+ {[%emt 0:00:06]} 31. Qxd1 {[%emt 0:00:01]} Ra1 {[%emt 0:00:43]} 32. Rb1 {[%emt 0:00:01]} Ra5 {[%emt 0:00:01]} 33. Nc3 {[%emt 0:00:20]} Qxc4 {[%emt 0:00:06]} 34. Nd5 {[%emt 0:00:04]} Ra6 {[%emt 0:00:34]} 35. Bf1 {[%emt 0:00:12]} 1-0

[Event "Kupreichik Memorial Open 2018"]
[Site "Minsk"]
[Date "2018.06.22"]
[Round "8"]
[White "Maslak, Alexander"]
[Black "Zeliantsova, Kseniya"]
[Result "1/2-1/2"]
[ECO "B40"]
[WhiteElo "2127"]
[BlackElo "1844"]
[Annotator "NA"]
[PlyCount "65"]
[EventDate "2018.06.21"]
[EventCountry "BLR"]
[SourceTitle "playchess.com"]
[Source "ChessBase"]
[SourceQuality "1"]
[TimeControl "900+10"]

1. e4 {[%emt 0:00:00]} c5 {[%emt 0:00:00]} 2. Nf3 {[%emt 0:00:00]} e6 {[%emt 0:00:01]} 3. d4 {[%emt 0:00:00]} cxd4 {[%emt 0:00:01]} 4. Nxd4 {[%emt 0:00:00]} Nf6 {[%emt 0:00:01]} 5. Nc3 {[%emt 0:00:01]} Nc6 {[%emt 0:00:01]} 6. Nxc6 {[%emt 0:00:17]} bxc6 {[%emt 0:00:02]} 7. e5 {[%emt 0:00:01]} Nd5 {[%emt 0:00:01]} 8. Ne4 {[%emt 0:00:03]} Qc7 {[%emt 0:00:02]} 9. f4 {[%emt 0:00:03]} Qb6 {[%emt 0:00:01]} 10. c4 {[%emt 0:00:19]} Ne3 {[%emt 0:00:06]} 11. Qd3 {[%emt 0:01:04]} Nf5 {[%emt 0:01:01]} 12. g4 {[%emt 0:03:18]} Nd4 {[%emt 0:00:02]} 13. b3 {[%emt 0:00:53]} Be7 {[%emt 0:02:09]} 14. Be3 {[%emt 0:00:54]} Nc2+ {[%emt 0:00:15]} 15. Ke2 {[%emt 0:00:21]} Nxe3 {[%emt 0:00:10]} 16. Qxe3 {[%emt 0:00:02]} Qa5 {[%emt 0:00:57]} 17. Bg2 {[%emt 0:00:27]} Ba6 {[%emt 0:02:28]} 18. Rhd1 {[%emt 0:00:46]} Rd8 {[%emt 0:00:55]} 19. Nd6+ {[%emt 0:02:02]} Bxd6 {[%emt 0:00:15]} 20. Rxd6 {[%emt 0:00:02]} O-O {[%emt 0:00:52]} 21. Qd2 {[%emt 0:02:36]} Qa3 {[%emt 0:01:57]} 22. Rd1 {[%emt 0:00:36]} c5 {[%emt 0:01:52]} 23. Kf1 {[%emt 0:01:13]} Bc8 {[%emt 0:00:16]} 24. Kg1 {[%emt 0:00:13]} Rde8 {[%emt 0:00:46]} 25. Be4 {[%emt 0:00:20]} f6 {[%emt 0:00:36]} 26. Rf1 {[%emt 0:00:16]} fxe5 {[%emt 0:00:38]} 27. fxe5 {[%emt 0:00:01]} Rxf1+ {[%emt 0:00:44]} 28. Kxf1 {[%emt 0:00:01]} Rf8+ {[%emt 0:00:01]} 29. Kg1 {[%emt 0:00:07]} a5 {[%emt 0:00:08]} 30. Qc2 {[%emt 0:00:40]} g6 {[%emt 0:00:10]} 31. Bxg6 {[%emt 0:01:54]} hxg6 {[%emt 0:01:31]} 32. Qxg6+ {[%emt 0:00:02]} Kh8 {[%emt 0:00:00]} 33. Qh6+ {[%emt 0:00:50]} 1/2-1/2